Cogmind - Beta 15 --- EXPLORER MODE // 2025.07.23 @ 16:46:56 // Winter2019/RPGLIKE Player: User15V Result: Self-destructed Performance ------------- Evolutions (7) 3500 Regions Visited (13) 2600 Robots Destroyed (76) 380 Value Destroyed (3120) 3120 Prototype IDs (6) 120 Alien Tech Used (0) 0 Bonus (1000) 1000 TOTAL SCORE: 10720 Bonus ------- Entered DSFs 1000 Cogmind --------- Core Integrity 929/1000 Matter 340/350 Energy 135/135 System Corruption 0% Temperature Cool (0) Movement Hovering (56) Location -3/Testing Parts ------- > --- POWER (1) -------- Compact Particle Reactor > --- PROPULSION (4) --- Gravmag Array Gravmag Array > --- UTILITY (12) ----- Experimental Power Amplifier Heat Sink Advanced Visual Processing Unit Advanced Terrain Scanner Terrain Scan Processor Core Analyzer Improved Weapon Cycler Improved Reaction Control System Improved Focal Shield Dynamic Insulation System High-powered Tractor Beam > --- WEAPON (4) ------- Hypervelocity Gauss Rifle Hypervelocity Gauss Rifle Hypervelocity Gauss Rifle Katana > --- INVENTORY (4) ---- Heavy Armored Exoskeleton Peak State ------------ > --- POWER ------------ Antimatter Reactor > --- PROPULSION ------- Gravmag Array Gravmag Array > --- UTILITY ---------- Experimental Power Amplifier Heat Sink Advanced Visual Processing Unit Advanced Terrain Scanner Terrain Scan Processor Core Analyzer Precision Matter Filter Improved Weapon Cycler Improved Reaction Control System Improved Focal Shield Dynamic Insulation System High-powered Tractor Beam > --- WEAPON ----------- Hypervelocity Gauss Rifle Hypervelocity Gauss Rifle Hypervelocity Gauss Rifle Katana > --- INVENTORY -------- Heavy Armored Exoskeleton [Rating: 103] Favorites ----------- Power Antimatter Reactor Engine Ion Engine Power Core Light Nuclear Core Reactor Antimatter Reactor Propulsion Gravmag Array Leg Aluminum Leg Wheel Wheel Hover Unit Gravmag Array Flight Unit Improved VTOL Module Utility Heat Sink Device Heat Sink Processor Core Analyzer Protection Light Armor Plating Weapon Hypervelocity Gauss Rifle Energy Gun Beam Rifle Ballistic Gun Hypervelocity Gauss Rifle Slashing Weapon Katana Build | -11 -10 -9 -8 -7 -6 -6 -5 -5 -5 -5 -4 -3 -3 ------- Run | Yrd Mat Mat Mat Fac Fac DSF Fac Was Fac DSF Fac Res Tes Slots Evolved 17 | 4 . 3 2 2 1 1 1 . . . . 3 . Power . | . . . . . . . . . . . . . . Propulsion 3 | 1 . 1 1 . . . . . . . . . . Utility 11 | 2 . 1 1 2 1 . 1 . . . . 3 . Weapon 3 | 1 . 1 . . . 1 . . . . . . . Parts Attached 38 | 5 1 8 4 1 5 1 4 4 . . . 2 3 Power 4 | . 1 1 . . . . . 1 . . . . 1 Engine 1 | . . 1 . . . . . . . . . . . Core 1 | . 1 . . . . . . . . . . . . Reactor 2 | . . . . . . . . 1 . . . . 1 Propulsion 9 | 3 . 3 1 . . . . 2 . . . . . Treads . | . . . . . . . . . . . . . . Leg 1 | 1 . . . . . . . . . . . . . Wheel 2 | 2 . . . . . . . . . . . . . Hover 2 | . . . . . . . . 2 . . . . . Flight 4 | . . 3 1 . . . . . . . . . . Utility 16 | 1 . 1 2 . 2 1 4 1 . . . 2 2 Device 10 | 1 . 1 . . . 1 4 1 . . . . 2 Storage . | . . . . . . . . . . . . . . Processor 5 | . . . 2 . 2 . . . . . . 1 . Hackware . | . . . . . . . . . . . . . . Protection 1 | . . . . . . . . . . . . 1 . Artifact . | . . . . . . . . . . . . . . Weapon 9 | 1 . 3 1 1 3 . . . . . . . . Energy Gun 2 | 1 . 1 . . . . . . . . . . . Energy Cannon . | . . . . . . . . . . . . . . Ballistic Gun 6 | . . 2 . 1 3 . . . . . . . . Ballistic Cannon . | . . . . . . . . . . . . . . Launcher . | . . . . . . . . . . . . . . Special Weapon . | . . . . . . . . . . . . . . Impact Weapon . | . . . . . . . . . . . . . . Slashing Weapon 1 | . . . 1 . . . . . . . . . . Piercing Weapon . | . . . . . . . . . . . . . . Special Melee Weapon . | . . . . . . . . . . . . . . Unidentified Prototypes 6 | . . 2 . 1 . . . . . . . . 3 Parts Lost 1 | . . . . . . . . . . . . . 1 Power . | . . . . . . . . . . . . . . Propulsion . | . . . . . . . . . . . . . . Utility 1 | . . . . . . . . . . . . . 1 Weapon . | . . . . . . . . . . . . . . Highest Loss Streak 1 | . . . . . . . . . . . . . 1 To Critical Strikes . | . . . . . . . . . . . . . . Average Backups . | . . . 1 1 2 3 2 . 1 1 1 1 1 Power . | . . . . . . . . . . . . . . Propulsion . | . . . 1 1 1 1 2 . 1 1 1 1 1 Utility . | . . . . . . . . . . . . . . Weapon . | . . . . . 1 1 . . . . . . . Tool/Special . | . . . . . . . . . . . . . . Unused Backups 7 | 4 . . . 1 . 1 . . . . . . 1 Power 1 | 1 . . . . . . . . . . . . . Propulsion 2 | 1 . . . . . . . . . . . . 1 Utility 1 | 1 . . . . . . . . . . . . . Weapon 3 | 1 . . . 1 . 1 . . . . . . . Tool/Special . | . . . . . . . . . . . . . . Average Slot Usage (%) 85 | . 87 76 84 87 86 95 97 91 88 88 88 79 85 Core 2 | . 5 8 7 6 6 5 5 1 . . . . . Reactor 2 | . . . . . . . . 3 5 5 5 4 4 Wheel 2 | . 25 16 . . . . . . . . . . . Hover 6 | . . . . . . . . 7 11 11 11 9 9 Flight 5 | . . 2 29 26 25 24 22 6 . . . . . Device 29 | . 12 14 15 13 12 13 22 34 38 38 38 33 36 Processor 10 | . . . . 13 15 24 19 15 11 11 11 11 14 Protection 3 | . 12 9 7 6 6 5 3 . . . . . 1 Energy Gun 2 | . 12 12 7 6 4 . . . . . . . . Ballistic Gun 13 | . 12 11 7 6 8 17 16 16 16 16 16 14 14 Slashing Weapon 3 | . . . 6 6 4 1 5 5 5 5 5 4 4 Peak Build Rating 103 | 9 11 25 36 38 53 63 75 84 84 84 84 90 103 Average Rating 67 | 8 9 14 31 37 41 57 68 80 84 84 84 85 93 On Entrance 52 | 4 9 11 25 36 38 53 63 75 84 84 84 84 90 Naked Turns . | . . . . . . . . . . . . . . Heaviest Build 53 | 11 11 17 18 18 28 31 34 46 46 46 46 48 53 Greatest Support 55 | 25 25 25 35 35 35 35 35 55 55 55 55 55 55 Greatest Overweight (x) 1 | . . 1 . . . . . . . . . . . Average Overweight (x) . | . . . . . . . . . . . . . . Largest Inventory Capacity 4 | 4 4 4 4 4 4 4 4 4 4 4 4 4 4 Average Capacity 4 | 4 4 4 4 4 4 4 4 4 4 4 4 4 4 Most Carried 4 | 2 1 3 3 3 4 4 4 4 4 4 4 4 4 Average Carried 2 | . . . 1 1 2 3 4 2 4 4 4 4 4 Final Capacity 4 | 4 4 4 4 4 4 4 4 4 4 4 4 4 4 Final Carried 4 | . . 2 1 2 4 4 4 4 4 4 4 4 4 Class Distribution -------------------- 42% | Hacker-Scout 20% | Hacker-Gunner 19% | Hacker-Sprinter 13% | Hacker-Mutant 3% | Scavenger-Skirmisher Dominant Class ---------------- Hacker-Mutant | -10/Materials Scavenger-Skirmisher | -9/Materials Hacker-Sprinter | -8/Materials Hacker-Sprinter | -7/Factory Hacker-Sprinter | -6/Factory Hacker-Sprinter | -6/DSF Hacker-Sprinter | -5/Factory Hacker-Gunner | -5/Waste Hacker-Gunner | -5/Factory Hacker-Gunner | -5/DSF Hacker-Gunner | -4/Factory Hacker-Gunner | -3/Research Hacker-Scout | -3/Testing Resources | -11 -10 -9 -8 -7 -6 -6 -5 -5 -5 -5 -4 -3 -3 ----------- Run | Yrd Mat Mat Mat Fac Fac DSF Fac Was Fac DSF Fac Res Tes Matter Collected 2123 | 269 23 89 74 24 . . 30 289 . 30 43 522 730 Remotely 1644 | . . . . . . . 30 289 . 30 43 522 730 Salvage Created 3955 | 213 67 313 178 24 . . 30 . . 92 29 1188 1821 Parts 248 | 17 10 15 6 . . . 4 . . 8 10 74 104 Haulers Intercepted 2 | . 1 1 . . . . . . . . . . . Recyclers Shooed 5 | 1 . 2 1 . . . . . . . . 1 . Parts Field Recycled . | . . . . . . . . . . . . . . Retrieved Matter . | . . . . . . . . . . . . . . Parts Self-Destructed . | . . . . . . . . . . . . . . Prevented . | . . . . . . . . . . . . . . Kills | -11 -10 -9 -8 -7 -6 -6 -5 -5 -5 -5 -4 -3 -3 ------- Run | Yrd Mat Mat Mat Fac Fac DSF Fac Was Fac DSF Fac Res Tes Combat Hostiles Destroyed 47 | . 4 3 5 . . . . . . 2 1 12 20 Melee 1 | . . . . . . . . . . . . . 1 Guns 45 | . 4 3 4 . . . . . . 2 1 12 19 Classes Destroyed 16 | 3 3 1 1 . . . 1 . . 1 1 1 4 Worker 7 | 2 . 2 1 1 . . . . . . . . 1 Builder 6 | . . . . . . . . . . . 1 4 1 Tunneler 6 | 5 . . . . . . . . . . . 1 . Hauler 2 | . 1 1 . . . . . . . . . . . Recycler 4 | 1 . . . . . . . . . . . 2 1 Operator 2 | . . . . . . . 1 . . . . . 1 Watcher 2 | . . . . . . . . . . . . 1 1 Swarmer 7 | . 2 . . . . . . . . . . 5 . Cutter 2 | . . . . . . . . . . 2 . . . Grunt 17 | . 2 . 3 . . . . . . . . 7 5 Brawler 1 | . . . . . . . . . . . . . 1 Duelist 1 | . . . 1 . . . . . . . . . . Sentry 5 | . . 3 1 . . . . . . . 1 . . Specialist 4 | . . . . . . . . . . . . . 4 Hunter 4 | . . . . . . . . . . . . . 4 Programmer 6 | . . . . . . . . . . . . . 6 Best Kill Streak 10 | 3 3 4 6 1 . . 1 . . 2 1 10 5 Combat Bots Only 8 | . 2 1 5 . . . . . . 2 1 8 4 Max Kills in Single Turn 2 | 1 1 2 1 1 . . 1 . . 2 1 2 2 Gunslinging 1 | . . . . . . . . . . 1 . 1 1 Exploded . | . . . . . . . . . . . . . . Melee 1 | . . . . . . . . . . . . . 1 Uniques/NPCs Destroyed . | . . . . . . . . . . . . . . Combat | -11 -10 -9 -8 -7 -6 -6 -5 -5 -5 -5 -4 -3 -3 -------- Run | Yrd Mat Mat Mat Fac Fac DSF Fac Was Fac DSF Fac Res Tes Hostile Shots Fired 359 | . 20 35 25 . . 3 . . . 4 10 78 184 Missed 159 | . 7 6 10 . . 1 . . . 2 3 33 97 Hits 200 | . 13 29 15 . . 2 . . . 2 7 45 87 Melee 2 | . . . 1 . . . . . . . . 1 . Projectile 198 | . 13 29 14 . . 2 . . . 2 7 44 87 AOE 2 | . . . . . . . . . . 1 1 . . Critical Strikes 12 | . . 3 1 . . . . . . . . 3 5 Part Disruptions 1 | . . . . . . . . . . . . . 1 Actively Blocked 1 | . . . . . . . . . . . . . 1 Damage Taken 1953 | . 80 263 151 . . 52 . . . 55 127 536 689 Core 1410 | . 58 182 108 . . 40 . . . 42 101 408 471 Absorbed by Shields . | . . . . . . . . . . . . . . Redirected to Core 1102 | . 44 114 79 . . 40 . . . 42 93 327 363 Redirected to Shielding 120 | . . . . . . . . . . . . 30 90 Ignored by Resistances 1642 | . 54 164 91 . . 29 . . . 56 100 410 738 Core Remaining (%) 94 | 100 97 71 100 100 . 96 . . . 95 100 . . Volleys Fired 173 | 19 13 29 21 1 . . 4 . . 2 6 31 47 Largest 3 | 2 2 3 2 2 . . 3 . . 3 3 3 3 Hottest 116 | 60 60 116 79 81 . . 99 . . 99 99 99 99 Shots Fired 435 | 38 26 57 42 2 . . 12 . . 6 18 93 141 Gun 435 | 38 26 57 42 2 . . 12 . . 6 18 93 141 Cannon . | . . . . . . . . . . . . . . Launcher . | . . . . . . . . . . . . . . Special . | . . . . . . . . . . . . . . Kinetic 353 | 19 13 29 21 1 . . 12 . . 6 18 93 141 Thermal 82 | 19 13 28 21 1 . . . . . . . . . Explosive . | . . . . . . . . . . . . . . Electromagnetic . | . . . . . . . . . . . . . . Robot Hit Streak 44 | 21 22 23 28 6 . . 7 . . 2 9 24 44 Robot Miss Streak 3 | 2 2 1 1 . . . 1 . . 3 1 2 2 Penetration Max 3 | . . . . . . . . . . . 1 3 2 Secondary Targets 14 | . 1 . . . . . . . . 1 . 7 5 Max Gunslinging Chain 1 | . 1 . . . . . . . . 1 . 1 1 Shots Hit Robots 355 | 30 20 43 38 1 . . 9 . . 2 15 75 122 Core Hits 181 | 14 11 14 11 1 . . 5 . . 2 7 49 67 Critical Kills 46 | . 1 . . . . . 1 . . 2 1 18 23 Critical Parts Destroyed 46 | . . . . . . . 3 . . . 4 16 23 Critical Strikes 100 | . 1 1 2 . . . 4 . . 2 8 34 48 Burn 3 | . . 1 2 . . . . . . . . . . Destroy 96 | . 1 . . . . . 4 . . 2 8 34 47 Sever 1 | . . . . . . . . . . . . . 1 Melee Attacks 14 | . . . 3 1 1 . . . . . . . 9 Impact . | . . . . . . . . . . . . . . Slashing 14 | . . . 3 1 1 . . . . . . . 9 Piercing . | . . . . . . . . . . . . . . Sneak Attacks 1 | . . . . . . . . . . . . . 1 Combat Hostiles . | . . . . . . . . . . . . . . Follow-up Attacks . | . . . . . . . . . . . . . . Damage Inflicted 3472 | 284 193 464 576 18 . . 57 . . 13 108 688 1071 Guns 3322 | 284 193 464 576 18 . . 57 . . 13 108 688 921 Cannons . | . . . . . . . . . . . . . . Explosions . | . . . . . . . . . . . . . . Melee 150 | . . . . . . . . . . . . . 150 Ramming . | . . . . . . . . . . . . . . Kinetic 2437 | 121 67 173 271 18 . . 57 . . 13 108 688 921 Thermal 885 | 163 126 291 305 . . . . . . . . . . Explosive . | . . . . . . . . . . . . . . Electromagnetic . | . . . . . . . . . . . . . . Impact . | . . . . . . . . . . . . . . Slashing 150 | . . . . . . . . . . . . . 150 Piercing . | . . . . . . . . . . . . . . Highest Corruption 1 | . . . 1 . . . . . . . . . . Average Corruption 1 | . . . 1 . . . . . . . . . . Corruption Purged . | . . . . . . . . . . . . . . Corruption Blocked . | . . . . . . . . . . . . . . Effects 1 | . . . 1 . . . . . . . . . . Data Loss (minor) 1 | . . . 1 . . . . . . . . . . Overload Shots . | . . . . . . . . . . . . . . Overflow Damage 6 | . . . . . . . . . . . . . 6 Projectiles . | . . . . . . . . . . . . . . Explosions . | . . . . . . . . . . . . . . Melee 6 | . . . . . . . . . . . . . 6 Knockbacks . | . . . . . . . . . . . . . . Impact . | . . . . . . . . . . . . . . Kinetic . | . . . . . . . . . . . . . . Secondary . | . . . . . . . . . . . . . . Self-Inflicted Damage . | . . . . . . . . . . . . . . Shots . | . . . . . . . . . . . . . . Rammed . | . . . . . . . . . . . . . . Targets Rammed . | . . . . . . . . . . . . . . Kicked . | . . . . . . . . . . . . . . Crushed . | . . . . . . . . . . . . . . Highest Temperature 123 | 28 46 123 20 . . . 3 . . . 8 39 26 Average Temperature 23 | 12 20 44 5 . . . 3 . . . 4 11 12 Received Heat Transfer 657 | . 51 180 99 . . . . . . . 18 222 87 Siege Activations . | . . . . . . . . . . . . . . Martial Activations . | . . . . . . . . . . . . . . Shielding Activations . | . . . . . . . . . . . . . . Robots Disrupted . | . . . . . . . . . . . . . . Combat Hostiles . | . . . . . . . . . . . . . . Robots Corrupted . | . . . . . . . . . . . . . . Combat Hostiles . | . . . . . . . . . . . . . . Parts Fried . | . . . . . . . . . . . . . . Impact Corruptions . | . . . . . . . . . . . . . . Robots Melted 1 | . . . 1 . . . . . . . . . . Combat Hostiles 1 | . . . 1 . . . . . . . . . . Parts Melted 6 | 1 1 1 1 . . . . . . . . . 2 Heat Transferred 2344 | 375 275 769 925 . . . . . . . . . . Parts Sabotaged . | . . . . . . . . . . . . . . Parts Stolen . | . . . . . . . . . . . . . . Parts Stripped . | . . . . . . . . . . . . . . Power Chain Reactions . | . . . . . . . . . . . . . . Alert | -11 -10 -9 -8 -7 -6 -6 -5 -5 -5 -5 -4 -3 -3 ------- Run | Yrd Mat Mat Mat Fac Fac DSF Fac Was Fac DSF Fac Res Tes Maximum Alert Level 1 | . . . . . . . . . . . . 1 . Low Security (%) 97 | 100 100 100 100 100 100 100 100 100 100 100 100 75 100 Level 1 2 | . . . . . . . . . . . . 24 . Level 2 . | . . . . . . . . . . . . . . Level 3 . | . . . . . . . . . . . . . . Level 4 . | . . . . . . . . . . . . . . Level 5 . | . . . . . . . . . . . . . . High Security . | . . . . . . . . . . . . . . Max Security . | . . . . . . . . . . . . . . Peak Influence 229 | 10 64 70 95 21 14 7 8 1 . 65 45 229 188 Initial 83 | . 2 9 . 21 1 7 2 1 . . 25 5 83 Average 47 | 2 23 25 31 8 1 7 1 . . 19 9 126 69 Influence Increases 1454 | 40 109 107 128 6 15 . 11 . . 65 50 378 545 Destroy 0b10 Robot/C 940 | . 80 60 100 . . . . . . 40 20 240 400 Destroy 0b10 Robot/NC 145 | 40 5 15 5 5 . . 5 . . . 5 40 25 Destroy Leader 178 | . 22 32 20 . . . . . . 10 10 42 42 Successful Hack 48 | . 2 . . . 14 . 6 . . . . 14 12 Disable Machine 16 | . . . . . . . . . . . . 4 12 Destroy Structure 37 | . . . 3 1 1 . . . . . . 8 24 Partial Spotted 30 | . . . . . . . . . . . 15 15 . Lose Combat Pursuer 60 | . . . . . . . . . . 15 . 15 30 Influence Decreases 1454 | 35 80 141 63 66 6 7 13 5 . . 100 194 744 Entered New Map 258 | . 3 25 . 44 4 7 5 4 . . 40 10 116 Time Decay 1186 | 35 77 116 63 22 2 . 8 1 . . 60 184 618 Lost Part 10 | . . . . . . . . . . . . . 10 Squads Dispatched 11 | . . 1 1 . . . 1 . . 1 1 3 3 Investigation 3 | . . 1 1 . . . . . . . 1 . . Extermination 3 | . . . . . . . . . . . . 1 2 Reinforcement 4 | . . . . . . . 1 . . 1 . 1 1 Assault . | . . . . . . . . . . . . . . Garrison 1 | . . . . . . . . . . . . 1 . Intercept . | . . . . . . . . . . . . . . Searches Triggered . | . . . . . . . . . . . . . . Construction Impeded . | . . . . . . . . . . . . . . Haulers Reinforced 1 | . . . . . . . . . . . . 1 . Active Scanning Responses . | . . . . . . . . . . . . . . Cargo Convoy Interrupts . | . . . . . . . . . . . . . . Stealth | -11 -10 -9 -8 -7 -6 -6 -5 -5 -5 -5 -4 -3 -3 --------- Run | Yrd Mat Mat Mat Fac Fac DSF Fac Was Fac DSF Fac Res Tes Distress Signals 1 | . . . . . . . . . . . . . 1 Communications Jammed . | . . . . . . . . . . . . . . Distress Signals . | . . . . . . . . . . . . . . Times Spotted 69 | . 4 3 5 . . 1 1 . . 4 3 17 31 Peak Tracking Total 7 | . 2 2 2 . . 1 1 . . 3 3 7 4 Tactical Retreats 4 | . . . . . . . . . . 1 . 1 2 Traps | -11 -10 -9 -8 -7 -6 -6 -5 -5 -5 -5 -4 -3 -3 ------- Run | Yrd Mat Mat Mat Fac Fac DSF Fac Was Fac DSF Fac Res Tes Traps Triggered 3 | . . . . . . . 1 . . 1 . 1 . Indirectly . | . . . . . . . . . . . . . . Trap Hack Attempts . | . . . . . . . . . . . . . . Triggered . | . . . . . . . . . . . . . . Disarmed . | . . . . . . . . . . . . . . Reprogrammed . | . . . . . . . . . . . . . . Reused . | . . . . . . . . . . . . . . Traps Extracted . | . . . . . . . . . . . . . . Installed . | . . . . . . . . . . . . . . Triggered . | . . . . . . . . . . . . . . Machines | -11 -10 -9 -8 -7 -6 -6 -5 -5 -5 -5 -4 -3 -3 ---------- Run | Yrd Mat Mat Mat Fac Fac DSF Fac Was Fac DSF Fac Res Tes Machines Disabled 4 | . . . . . . . . . . . . 1 3 Max in Single Turn 1 | . . . . . . . . . . . . 1 1 Garrison Access 2 | . . . . . . . . . . . . 1 1 Machines Repaired . | . . . . . . . . . . . . . . Machines Dismantled . | . . . . . . . . . . . . . . Machines Sabotaged . | . . . . . . . . . . . . . . Overloaded Fab Kills . | . . . . . . . . . . . . . . Hacking | -11 -10 -9 -8 -7 -6 -6 -5 -5 -5 -5 -4 -3 -3 --------- Run | Yrd Mat Mat Mat Fac Fac DSF Fac Was Fac DSF Fac Res Tes Machines Accessed 14 | . 2 1 2 . 2 . 1 . 1 . 1 2 2 Terminals 11 | . 2 1 2 . 2 . . . 1 . 1 1 1 Fabricators 1 | . . . . . . . 1 . . . . . . Repair Stations . | . . . . . . . . . . . . . . Recycling Units . | . . . . . . . . . . . . . . Scanalyzers . | . . . . . . . . . . . . . . Garrison Access 2 | . . . . . . . . . . . . 1 1 Total Hacks 30 | . 5 2 6 . 2 . 2 . 1 . 3 6 3 Successful 13 | . 2 . 1 . 2 . 2 . 1 . 1 2 2 Failed 17 | . 3 2 5 . . . . . . . 2 4 1 Catastrophic 6 | . 2 1 3 . . . . . . . . . . Database Lockouts . | . . . . . . . . . . . . . . Manual 20 | . 4 2 6 . 1 . . . . . 3 4 . Terminals 24 | . 5 2 6 . 2 . . . 1 . 3 4 1 Fabricators 2 | . . . . . . . 2 . . . . . . Repair Stations . | . . . . . . . . . . . . . . Recycling Units . | . . . . . . . . . . . . . . Scanalyzers . | . . . . . . . . . . . . . . Garrison Access 4 | . . . . . . . . . . . . 2 2 Terminal Hacks 9 | . 2 . 1 . 2 . . . 1 . 1 1 1 Part Schematic 1 | . . . . . 1 . . . . . . . . Robot Analysis 1 | . . . . . . . . . . . . . 1 Open DSF 2 | . . . . . 1 . . . 1 . . . . Level Access Points 3 | . 1 . 1 . . . . . . . 1 . . Branch Access Points 1 | . . . . . . . . . . . . 1 . Zone Layout 1 | . 1 . . . . . . . . . . . . Fabricator Hacks 2 | . . . . . . . 2 . . . . . . Load Schematic 1 | . . . . . . . 1 . . . . . . Build 1 | . . . . . . . 1 . . . . . . Repair Station Hacks . | . . . . . . . . . . . . . . Recycling Unit Hacks . | . . . . . . . . . . . . . . Scanalyzer . | . . . . . . . . . . . . . . Garrison Access Hacks 2 | . . . . . . . . . . . . 1 1 Seal Access 2 | . . . . . . . . . . . . 1 1 Unauthorized Hacks . | . . . . . . . . . . . . . . Terminals . | . . . . . . . . . . . . . . Fabricators . | . . . . . . . . . . . . . . Repair Stations . | . . . . . . . . . . . . . . Recycling Units . | . . . . . . . . . . . . . . Scanalyzers . | . . . . . . . . . . . . . . Garrison Access . | . . . . . . . . . . . . . . Data Cores Recovered 1 | . . . . . . . . . . . . . 1 Used . | . . . . . . . . . . . . . . Hacking Detections 8 | . 2 1 2 . . . . . . . 1 2 . Full Trace Events 4 | . 1 1 1 . . . . . . . 1 . . Feedback Events 1 | . . . 1 . . . . . . . . . . Corruption 1 | . . . 1 . . . . . . . . . . Feedback Blocked . | . . . . . . . . . . . . . . Robot Schematics Acquired . | . . . . . . . . . . . . . . Robots Built . | . . . . . . . . . . . . . . Authchips . | . . . . . . . . . . . . . . Time . | . . . . . . . . . . . . . . Total Robot Build Rating . | . . . . . . . . . . . . . . Part Schematics Acquired 1 | . . . . . 1 . . . . . . . . Parts Built 2 | . . . . . . . 2 . . . . . . Authchips . | . . . . . . . . . . . . . . Time 47 | . . . . . . . 47 . . . . . . Total Part Build Rating 10 | . . . . . . . 10 . . . . . . Parts Repaired . | . . . . . . . . . . . . . . Time . | . . . . . . . . . . . . . . Parts Recycled . | . . . . . . . . . . . . . . Recycled Matter . | . . . . . . . . . . . . . . Retrieved Matter . | . . . . . . . . . . . . . . Retrieved Components . | . . . . . . . . . . . . . . Parts Scanalyzed . | . . . . . . . . . . . . . . Part Schematics Acquired . | . . . . . . . . . . . . . . Parts Damaged . | . . . . . . . . . . . . . . Bothacking | -11 -10 -9 -8 -7 -6 -6 -5 -5 -5 -5 -4 -3 -3 ------------ Run | Yrd Mat Mat Mat Fac Fac DSF Fac Was Fac DSF Fac Res Tes Used RIF Installer . | . . . . . . . . . . . . . . Robots Hacked . | . . . . . . . . . . . . . . Non-combat . | . . . . . . . . . . . . . . Combat . | . . . . . . . . . . . . . . Robot Hacks Applied . | . . . . . . . . . . . . . . Relay Couplers Released . | . . . . . . . . . . . . . . Fabnet Peak Effective % . | . . . . . . . . . . . . . . Robots Rewired . | . . . . . . . . . . . . . . Allies Hacked . | . . . . . . . . . . . . . . Hacks Repelled . | . . . . . . . . . . . . . . Allies | -11 -10 -9 -8 -7 -6 -6 -5 -5 -5 -5 -4 -3 -3 -------- Run | Yrd Mat Mat Mat Fac Fac DSF Fac Was Fac DSF Fac Res Tes Total Allies . | . . . . . . . . . . . . . . Largest Group . | . . . . . . . . . . . . . . Highest-Rated Group . | . . . . . . . . . . . . . . Highest-Rated Ally . | . . . . . . . . . . . . . . Total Orders . | . . . . . . . . . . . . . . Ally Attacks . | . . . . . . . . . . . . . . Total Damage . | . . . . . . . . . . . . . . Kills . | . . . . . . . . . . . . . . Allies Corrupted . | . . . . . . . . . . . . . . Allies Melted . | . . . . . . . . . . . . . . Intel | -11 -10 -9 -8 -7 -6 -6 -5 -5 -5 -5 -4 -3 -3 ------- Run | Yrd Mat Mat Mat Fac Fac DSF Fac Was Fac DSF Fac Res Tes Active Infowar (turns) 2618 | 130 121 205 197 69 79 21 109 95 20 116 166 277 1013 Optics 1118 | . . . . . . . . . . . . 105 1013 Terrain 2618 | 130 121 205 197 69 79 21 109 95 20 116 166 277 1013 Robot Analysis Total 1 | . . . . . . . . . . . . . 1 Derelict Logs Recovered . | . . . . . . . . . . . . . . Drone Launches . | . . . . . . . . . . . . . . Drone Recoveries . | . . . . . . . . . . . . . . Exploration | -11 -10 -9 -8 -7 -6 -6 -5 -5 -5 -5 -4 -3 -3 ------------- Run | Yrd Mat Mat Mat Fac Fac DSF Fac Was Fac DSF Fac Res Tes Turns Passed 2640 | 152 121 205 197 69 79 21 109 95 20 116 166 277 1013 Spaces Moved 2332 | 54 98 174 154 58 87 56 127 117 35 94 253 284 741 Core . | . . . . . . . . . . . . . . Treads . | . . . . . . . . . . . . . . Legs 29 | 29 . . . . . . . . . . . . . Wheels 235 | 25 98 112 . . . . . . . . . . . Hover 1475 | . . . . . . . . 68 35 94 253 284 741 Flight 593 | . . 62 154 58 87 56 127 49 . . . . . Fastest Speed 26 | 80 80 29 26 26 26 26 26 26 56 56 56 56 56 Average Speed 51 | 101 80 62 26 26 26 26 26 43 56 56 56 56 56 Slowest Speed 120 | 120 80 105 29 26 26 26 26 56 56 56 56 56 56 Overloaded Moves . | . . . . . . . . . . . . . . Propulsion Burnouts . | . . . . . . . . . . . . . . Robots Hopped . | . . . . . . . . . . . . . . Potential Cave-ins . | . . . . . . . . . . . . . . Cave-ins Triggered . | . . . . . . . . . . . . . . Exploration Rate (%) 29 | 4 29 21 17 2 3 81 3 73 1 83 13 11 75 Regions Visited 13 Branch Regions 1 Pre-discovered Areas . | . . . . . . . . . . . . . . Known Exits Taken 9 | 1 1 1 1 1 1 . . . 1 . 1 1 . Unknown Exits Taken . | . . . . . . . . . . . . . . Scrap Searched . | . . . . . . . . . . . . . . Spaces Dug 9 | . . . 3 1 1 . . . . . . . 4 Terrain Destroyed 21 | . . . 3 1 1 . . . . . . 4 12 Melee 9 | . . . 3 1 1 . . . . . . . 4 Projectile . | . . . . . . . . . . . . . . AOE . | . . . . . . . . . . . . . . Terrain Rammed . | . . . . . . . . . . . . . . Walls Destroyed . | . . . . . . . . . . . . . . Machines Disabled . | . . . . . . . . . . . . . . Actions | -11 -10 -9 -8 -7 -6 -6 -5 -5 -5 -5 -4 -3 -3 --------- Run | Yrd Mat Mat Mat Fac Fac DSF Fac Was Fac DSF Fac Res Tes Total 3452 | 117 117 226 264 109 144 62 196 163 35 153 267 350 1249 Wait 745 | 33 . . 57 41 39 . 58 29 . 58 . 19 411 Move 2322 | 53 97 173 153 57 87 55 127 116 35 93 252 283 741 Hop . | . . . . . . . . . . . . . . Pick Up 35 | 5 1 10 3 4 8 2 . 2 . . . . . Fast Attach 11 | . . . . . . 1 4 1 . . . 2 3 Attach 28 | 5 1 7 4 2 5 1 . 3 . . . . . Detach . | . . . . . . . . . . . . . . Swap 2 | . . 2 . . . . . . . . . . . Drop 30 | 2 1 5 1 3 4 3 3 6 . . . . 2 Fire 173 | 19 13 29 21 1 . . 4 . . 2 6 31 47 Melee 14 | . . . 3 1 1 . . . . . . . 9 Ram . | . . . . . . . . . . . . . . Kick . | . . . . . . . . . . . . . . Crush . | . . . . . . . . . . . . . . Escape Stasis . | . . . . . . . . . . . . . . Rewire 1 | . . . . . . . . 1 . . . . . Trap . | . . . . . . . . . . . . . . Miscellaneous 91 | . 4 . 22 . . . . 5 . . 9 15 36 Route ------- -11/Scrapyard -10/Materials (discovered 3 exits: *Mat x3) -9/Materials -8/Materials (discovered 3 exits: *Fac x3) -7/Factory -6/Factory -6/DSF -5/Factory -5/Waste -5/Factory -5/DSF -4/Factory (discovered 5 exits: *Res x4 / *Upp) -3/Research (discovered 4 exits: Res / Arm / *Tes x2) -3/Testing (discovered 1 exit: *Res) History --------- Turn | Location | Event 1 | -11/Scrapyard | Upgraded with Propulsion slot (x1) 1 | -11/Scrapyard | Upgraded with Utility slot (x2) 1 | -11/Scrapyard | Upgraded with Weapon slot (x1) 1 | -11/Scrapyard | Identified exit to Materials 1 | -11/Scrapyard | Discovered exit to Materials (range 0) 153 | -11/Scrapyard | Entered Materials 229 | -10/Materials | Identified exit to Materials 274 | -10/Materials | Entered another Materials area 276 | -9/Materials | Reached level 2 276 | -9/Materials | Reached level 3 284 | -9/Materials | Upgraded with Propulsion slot (x1) 284 | -9/Materials | Upgraded with Utility slot (x1) 284 | -9/Materials | Upgraded with Weapon slot (x1) 312 | -9/Materials | Build established: Hacker-Mutant 476 | -9/Materials | Identified exit to Materials 476 | -9/Materials | Discovered exit to Materials (range 9) 479 | -9/Materials | Entered another Materials area 481 | -8/Materials | Reached level 4 481 | -8/Materials | Reached level 5 481 | -8/Materials | Reached level 6 483 | -8/Materials | Upgraded with Propulsion slot (x1) 483 | -8/Materials | Upgraded with Utility slot (x1) 557 | -8/Materials | Identified exit to Factory 607 | -8/Materials | Reached level 7 676 | -8/Materials | Entered Factory 678 | -7/Factory | Reached level 8 678 | -7/Factory | Reached level 9 678 | -7/Factory | Upgraded with Utility slot (x2) 728 | -7/Factory | Identified exit to Factory 728 | -7/Factory | Discovered exit to Factory (range 15) 745 | -7/Factory | Entered another Factory area 747 | -6/Factory | Build established: Hacker-Sprinter 747 | -6/Factory | Reached level 10 747 | -6/Factory | Reached level 11 747 | -6/Factory | Reached level 12 788 | -6/Factory | Upgraded with Utility slot (x1) 824 | -6/Factory | Identified exit to DSF 824 | -6/Factory | Entered DSF 826 | -6/DSF | Reached level 13 830 | -6/DSF | Upgraded with Weapon slot (x1) 841 | -6/DSF | Identified exit to Factory 841 | -6/DSF | Discovered exit to Factory (range 14) 845 | -6/DSF | Entered Factory 847 | -5/Factory | Reached level 14 847 | -5/Factory | Reached level 15 848 | -5/Factory | Upgraded with Utility slot (x1) 895 | -5/Factory | Fabricated Adv. Terrain Scanner (x2) 954 | -5/Factory | Sucked down chute 954 | -5/Factory | Entered Waste 954 | -5/Waste | The area was eerily silent 1044 | -5/Waste | Identified exit to Factory 1044 | -5/Waste | Discovered exit to Factory (range 10) 1049 | -5/Waste | Entered Factory 1069 | -5/Factory | Identified exit to DSF 1069 | -5/Factory | Entered DSF 1069 | -5/DSF | Reached level 16 1150 | -5/DSF | Additional patrols routed to DSF 1160 | -5/DSF | Identified exit to Factory 1160 | -5/DSF | Discovered exit to Factory (range 16) 1185 | -5/DSF | Entered Factory 1187 | -4/Factory | Reached level 17 1187 | -4/Factory | Reached level 18 1187 | -4/Factory | Reached level 19 1271 | -4/Factory | Build established: Hacker-Gunner 1284 | -4/Factory | Identified exit to Research 1300 | -4/Factory | Spotted B-86 Titan 1309 | -4/Factory | Identified exit to Upper Caves 1309 | -4/Factory | Discovered exit to Upper Caves (range 16) 1351 | -4/Factory | Entered Research 1353 | -3/Research | Reached level 20 1353 | -3/Research | Reached level 21 1353 | -3/Research | Reached level 22 1380 | -3/Research | Identified exit to Armory 1380 | -3/Research | Identified exit to Testing 1390 | -3/Research | Upgraded with Utility slot (x3) 1469 | -3/Research | Garrison activated, responded to threat 1512 | -3/Research | Destroyed 8 combat bots 1542 | -3/Research | Reached level 23 1602 | -3/Research | Identified exit to Research 1602 | -3/Research | Discovered exit to Research (range 18) 1628 | -3/Research | Entered Testing 1630 | -3/Testing | Reached level 24 1832 | -3/Testing | Build established: Hacker-Scout 2001 | -3/Testing | Spotted Striker 2001 | -3/Testing | Spotted Striker 2072 | -3/Testing | Reached level 25 2347 | -3/Testing | Discovered exit to Research (range 20) 2641 | -3/Testing | Self-destructed Last Messages --------------- (Destroy). 02500_ Destroyed Imp. Antigrav System. 02500_ K-01 Serf destroyed. 02500_ U-05 Engineer distress signal alerts nearby ally. 02501_ Acquired 15 matter. 02504_ HV Slug penetrates P-80 Master. 02504_ HV Slug penetrates Door. 02504_ HV Slug penetrates P-80 Master. 02505_ Acquired 15 matter. 02506_ HV Slug penetrates P-80 Master. 02506_ P-80 Master suffers critical hit (Destroy). 02506_ P-80 Master destroyed. 02506_ HV Slug penetrates Door. 02507_ Acquired 15 matter. 02507_ K-01 Serf collects debris. 02596_ Dropped Antimatter Reactor. 02596_ Acquired Prototype Reactor. 02596_ Identified Com. Particle Reactor. Map ----- +----------------------------------------------------+ | ## ########## | | ## """ ### | | ## """ ###T ######"""T"""############# | | ## """ ###""""### ######################### | | ## ### #### # ########### | | ## """ ###" T### # """ ########### | | ## = """ ####"""### # """ """ # # | | ## """ ### ### # """ """S"" ########### | | ## ########## # """""" ########### | | #################### + ########### | | #################### ######################### | | ####################^ ^ ######################### | | #################### ^ ^########################## | | ########## # ########################## | | ########## """"" # ######################## | | ########## """"" # ######################## | | ##########* """"" + ######################## | | ########## """"" # # =################## | | ########## # # ################## | | ########## # #= !################## | | ########## [ # # ################## | | #################### #] """##[ ##### | | #################### # """## """ ####### | | #################### + / """## """ !## ## | | #################### # F"## """ ## + | | #################### #@ """## """ ## ## | | #################### + "" ## """ ## ## | | ######################### ##### ## ## | | ######################### !##### ## ## | | ##########################! ## ## | | ################ #############+######+### | | ################ ######## | | ################ ######"" | | ? ################ ######"" ##########+### | | #######################"" ####### # | | ? ? ########### ####T ####### "" # | | # ## ####"" ####### "" # | | ######+### ## ####"" ####### F" # | | # ### + ## ####"" ####### "" # | | # ### ### * ## ###### ####### # | | # ### ### ## ###### ############## | | ##### ### ## ###### ############## | | ## ### ## ###### #############" | | ## ### ## ###### ## """"" ##" | | ## ### ######+######### ## ""T"" /##" | | # ###+########## ####### # ##" | | + " !%= T" # """ """ ##" | | # " *! [=* + """ """ ##" | | # ###+########## #######=%%!# """ """ ##" | | ## ## ### #########+### ##" | +----------------------------------------------------+ Best States ------------- Heat Dissipation 65 Energy Generation 35 Energy Capacity 325 Matter Stores 350 Matter Capacity 350 Sight Range 21 Terrain Scan Range 20 Terrain Scan Density 885 Power Amplification 40 EM Shielding 2 Armor Coverage 150 Resistance: KI 60 Resistance: TH 35 Resistance: EX 35 Resistance: EM 35 Resistance: I 35 Resistance: S 35 Resistance: P 35 Weapon Shielding 66 Weapon Cycling 20 Evasion (%) 74 Melee Accuracy 5 Core Analysis 9 Matter Filtering 50 Offensive Hacking 40 Defensive Hacking 10 Item Schematics ----------------- Adv. Terrain Scanner | -6/Factory | Hacked Robot Schematics ------------------ None Fabricated ------------ Adv. Terrain Scanner | x2 | -5/Factory Repaired ---------- Nothing Alien Tech Used ----------------- None Achievements -------------- None Challenges ------------ None RPGLIKE | -11 -10 -9 -8 -7 -6 -6 -5 -5 -5 -5 -4 -3 -3 --------- Run | Yrd Mat Mat Mat Fac Fac DSF Fac Was Fac DSF Fac Res Tes Levels Raised 24 | . . 2 4 2 3 1 2 . . 1 3 4 2 XP Earned 42861 | 6000 500 3871 4980 3292 4369 1623 3330 259 . 1574 3442 5861 3760 XP Spent 37450 | 5975 . 3005 4515 4280 4720 1485 3000 . . . . 10470 . Upgrades 56 | 15 . 7 7 6 7 5 3 . . . . 6 . Propulsion Slot 3 | 1 . 1 1 . . . . . . . . . . Utility Slot 11 | 2 . 1 1 2 1 . 1 . . . . 3 . Weapon Slot 3 | 1 . 1 . . . 1 . . . . . . . Core Integrity 8 | 1 . 1 1 . 2 3 . . . . . . . Heat Dissipation 5 | 1 . . 1 2 . 1 . . . . . . . Energy Generation 1 | 1 . . . . . . . . . . . . . Matter Storage 1 | . . . . . . . 1 . . . . . . Mass Support 3 | 1 . . 2 . . . . . . . . . . Inventory Capacity 4 | 4 . . . . . . . . . . . . . Sight Range 1 | 1 . . . . . . . . . . . . . Terrain Scan Density 8 | . . 3 . 2 . . . . . . . 3 . Ranged Accuracy 1 | 1 . . . . . . . . . . . . . Hack Attack % 4 | 1 . . . . 3 . . . . . . . . Hack Defense % 2 | . . . 1 . 1 . . . . . . . . KI Damage % 1 | . . . . . . . 1 . . . . . . Protomatter Created 992 | . 112 . 163 . . . . . . . 72 239 406 Integrity Restored 1881 | . 70 . 467 . . . . 102 . . 208 312 722 Core 1339 | . 40 . 308 . . . . 40 . . 143 304 504 Parts 542 | . 30 . 159 . . . . 62 . . 65 8 218 Protomatter Decayed 339 | . 86 . . . . . . . . . . 97 156 Game ------ Seed TowerAuthchipArticulator Manual? 0 Play Time 00:32:52 Cumulative 1039.5 hours Start 2025.07.23 @ 03:52:55 End 2025.07.23 @ 16:46:56 Sessions 3 Manual Loads 0 Difficulty Explorer Special Mode Winter2019/RPGLIKE Game No. 320 Rogue 104 Adventurer 111 Explorer 105 Win Type - Total 48 Types 22/8/1/7/3/1/1/1/1/3 Lore% 97 Gallery% 99 Achievement% 97 Wizard Run 0 Options --------- Layout 2 ASCII 0 Keyboard 0 Movement Mouse Keybinds 0 Fullscreen 2 Font 24/Smallcaps Map View 50x44 Zoom Use 0% Tactical HUD 1 Map Filters NONE Filters NONE Steam 1 RUN: 719e475f-58d6-42b1-8b9d-52b727393e11